fUST/lending_fUST_20260107
["ID","MTS","AMOUNT","RATE_DAILY","PERIOD"]
[400659029,1767772245799,-2200.0,0.00030147,7]
[400659030,1767772245808,-500.0,0.00030151,7]
[400659032,1767772245817,-2811.62,0.000302,14]
[400659034,1767772245827,-200.0,0.000302,120]
[400659035,1767772245836,-191.37491647,0.0003021,20]
[400659037,1767772245845,-500.0,0.00030392,7]
[400659039,1767772245854,-7241.114858,0.00030423,2]
[400659041,1767772245863,-2414.2803724,0.00030588,2]
[400659042,1767772245872,-2200.0,0.00030654,7]
[400659043,1767772245882,-2200.0,0.0003068,7]
[400659044,1767772245891,-1299.19626571,0.00030685,5]
[400659045,1767772245899,-500.0,0.00030685,15]
[400659046,1767772245909,-750.0,0.00030685,5]
[400659047,1767772245918,-750.65512167,0.00030685,5]
[400659048,1767772245927,-384.514,0.00030686,27]
[400659049,1767772245937,-184.475,0.00030686,27]
[400659050,1767772245946,-626.42487818,0.00030761,2]
[400659051,1767772245956,-2505.69951273,0.00030761,2]
[400659052,1767772245965,-5637.82390364,0.00030761,2]
[400659053,1767772245975,-2414.2803724,0.00030779,2]
[400659054,1767772245984,-2000.0,0.00030795,7]
[400659055,1767772245993,-1000.0,0.00030895,30]
[400659056,1767772246002,-1000.0,0.00030895,30]
[400659057,1767772246011,-1000.0,0.00030895,30]
[400659058,1767772246020,-151.0,0.00030895,31]
[400659059,1767772246030,-151.0,0.00030895,31]
[400659060,1767772246039,-402.32,0.00030958,30]
[400659061,1767772246048,-690.52048884,0.00030991,2]
[400659062,1767772246059,-191.73798973,0.00031,120]
[400659063,1767772246068,-176.11325056,0.00031,120]
[400659064,1767772246078,-191.51603111,0.00031,120]
[400659065,1767772246087,-174.41697135,0.00031,120]
[400659067,1767772246096,-163.98489072,0.00031,120]
[400659068,1767772246105,-164.04291735,0.00031,120]
[400659070,1767772246115,-206.91086702,0.00031,120]
[400659072,1767772246124,-194.89245098,0.00031,120]
[400659074,1767772246133,-200.0,0.00031,31]
[400659076,1767772246142,-200.0,0.00031,31]
[400659078,1767772246151,-200.0,0.00031,31]
[400659080,1767772246160,-200.0,0.00031,31]
[400659082,1767772246169,-186.0317041,0.00031,120]
[400659084,1767772246178,-190.2708929,0.00031,120]
[400659086,1767772246187,-151.0,0.00031,31]
[400659087,1767772246196,-151.0,0.00031,31]
[400659089,1767772246205,-151.0,0.00031,31]
[400659091,1767772246214,-181.252366,0.00031,31]
[400659093,1767772246223,-1019.0,0.00031,7]
[400659094,1767772246232,-152.0,0.00031,120]
[400659095,1767772246241,-346.1,0.00031009,4]
[400659096,1767772246253,-2414.2803724,0.00031062,2]
[400659097,1767772246274,-170.0,0.0003126,45]
[400659098,1767772246286,-1981.16465421,0.00031288,10]
[400659099,1767772246295,-5000.0,0.00031288,2]
[400659100,1767772246305,-2414.2803724,0.00031301,2]
[400659101,1767772246315,-25963.54,0.000314,2]
[400659102,1767772246324,-1908.17,0.000314,7]
[400659103,1767772246333,-191.37491647,0.00031456,22]
[400659104,1767772246342,-500.0,0.00031483,7]
[400659106,1767772246351,-243.07,0.000315,7]
[400659107,1767772246360,-402.32,0.00031506,31]
[400659109,1767772246369,-2410.47,0.00031506,8]
[400659111,1767772246379,-500.0,0.00031519,7]
[400659112,1767772246387,-2000.0,0.00031562,7]
[400659113,1767772246396,-258.12,0.000316,7]
[400659114,1767772246405,-209.524359,0.00031632,31]
[400659115,1767772246414,-209.524359,0.00031632,31]
[400659116,1767772246423,-209.524359,0.00031632,31]
[400659117,1767772246432,-209.524359,0.00031632,31]
[400659118,1767772246442,-241.004676,0.00031632,31]
[400659119,1767772246451,-241.004676,0.00031632,31]
[400659120,1767772246460,-1016.281206,0.00031632,31]
[400659121,1767772246469,-241.004676,0.00031632,31]
[400659122,1767772246478,-1016.281206,0.00031632,31]
[400659123,1767772246487,-241.004676,0.00031632,31]
[400659124,1767772246496,-1016.281206,0.00031632,31]
[400659125,1767772246505,-1016.281206,0.00031632,31]
[400659127,1767772246514,-151.0,0.00031632,31]
[400659129,1767772246523,-530.111159,0.00031632,31]
[400659131,1767772246533,-530.111159,0.00031632,31]
[400659133,1767772246543,-530.111159,0.00031632,31]
[400659135,1767772246552,-225.672265,0.00031632,31]
[400659137,1767772246562,-530.111159,0.00031632,31]
[400659139,1767772246571,-225.672265,0.00031632,31]
[400659141,1767772246583,-225.672265,0.00031632,31]
[400659143,1767772246592,-225.672265,0.00031632,31]
[400659145,1767772246601,-218.702509,0.00031632,31]
[400659146,1767772246610,-218.702509,0.00031632,31]
[400659148,1767772246619,-218.702509,0.00031632,31]
[400659150,1767772246629,-218.702509,0.00031632,31]
[400659153,1767772246638,-2800.0,0.00031668,7]
[400659155,1767772246647,-2414.2803724,0.00031669,2]
[400659156,1767772246657,-2811.62,0.000317,14]
[400659158,1767772246666,-200.0,0.000317,120]
[400659160,1767772246675,-376.8907927,0.00031726,30]
[400659161,1767772246686,-376.8907927,0.00031726,30]
[400659164,1767772246696,-376.8907927,0.00031726,30]
[400659165,1767772246705,-163.7617916,0.00031726,30]
[400659167,1767772246715,-1155.00235294,0.00031749,5]
[400659169,1767772246726,-1341.62223171,0.00031749,5]
[400659170,1767772246736,-5361.12243792,0.00031749,5]
[400659171,1767772246745,-4615.38940236,0.00031749,5]
[400659172,1767772246755,-2381.05381254,0.00031749,5]
[400659174,1767772246765,-4122.90745706,0.00031749,5]
[400659175,1767772246775,-151.0,0.00031749,31]
[400659176,1767772246784,-151.0,0.00031749,31]
[400659177,1767772246794,-151.0,0.00031749,31]
[400659178,1767772246803,-151.0,0.00031749,31]
[400659179,1767772246812,-151.0,0.00031749,31]
[400659180,1767772246821,-151.0,0.00031749,31]
[400659181,1767772246830,-205.742012,0.00031749,31]
[400659182,1767772246840,-205.742012,0.00031749,31]
[400659183,1767772246849,-205.742012,0.00031749,31]
[400659184,1767772246858,-151.0,0.00031749,31]
[400659185,1767772246868,-205.742012,0.00031749,31]
[400659186,1767772246877,-151.0,0.00031749,31]
[400659187,1767772246886,-207.616806,0.00031749,31]
[400659188,1767772246895,-160.185086,0.00031749,31]
[400659189,1767772246904,-440.287203,0.00031749,31]
[400659190,1767772246913,-440.287203,0.00031749,31]
[400659191,1767772246922,-440.287203,0.00031749,31]
[400659192,1767772246931,-440.287203,0.00031749,31]
[400659193,1767772246941,-2414.2803724,0.00031825,2]
[400659194,1767772246950,-191.73798973,0.000319,120]
[400659195,1767772246959,-191.51603111,0.000319,120]
[400659196,1767772246968,-174.41697135,0.000319,120]
[400659197,1767772246977,-164.04291735,0.000319,120]
[400659198,1767772246987,-206.91086702,0.000319,120]
[400659199,1767772246996,-186.0317041,0.000319,120]
[400659200,1767772247005,-190.2708929,0.000319,120]
[400659201,1767772247014,-1097.0,0.00032,30]
[400659202,1767772247023,-151.0,0.00032,31]
[400659203,1767772247032,-151.0,0.00032,31]
[400659204,1767772247041,-151.0,0.00032,31]
[400659205,1767772247050,-184.812283,0.00032,31]
[400659206,1767772247059,-184.812283,0.00032,31]
[400659207,1767772247068,-184.812283,0.00032,31]
[400659208,1767772247077,-151.0,0.00032,31]
[400659209,1767772247086,-184.812283,0.00032,31]
[400659210,1767772247095,-151.528573,0.00032,31]
[400659211,1767772247104,-151.0,0.00032,31]
[400659212,1767772247113,-247.352857,0.00032,31]
[400659213,1767772247122,-151.0,0.00032,31]
[400659214,1767772247132,-634.815792,0.00032,28]
[400659215,1767772247141,-247.352857,0.00032,31]
[400659216,1767772247150,-634.815792,0.00032,28]
[400659217,1767772247159,-247.352857,0.00032,31]
[400659218,1767772247168,-634.815792,0.00032,28]
[400659219,1767772247177,-247.352857,0.00032,31]
[400659220,1767772247186,-634.815792,0.00032,28]
[400659221,1767772247195,-298.315005,0.00032,31]
[400659222,1767772247204,-298.315005,0.00032,31]
[400659223,1767772247213,-298.315005,0.00032,31]
[400659224,1767772247223,-298.315005,0.00032,31]
[400659225,1767772247232,-1019.0,0.00032,7]
[400659226,1767772247241,-402.32,0.00032054,32]
[400659227,1767772247251,-1097.0,0.0003206,30]
[400659228,1767772247262,-2414.2803724,0.00032265,2]
[400659229,1767772247272,-2000.0,0.00032329,7]
[400659230,1767772247282,-1000.0,0.000324,120]
[400659231,1767772247291,-180.24152364,0.00032437,9]
[400659232,1767772247301,-90000.0,0.000325,120]
[400659233,1767772247311,-151.0,0.000325,31]
[400659234,1767772247320,-194.927323,0.000325,31]
[400659235,1767772247331,-194.927323,0.000325,31]
[400659236,1767772247340,-194.927323,0.000325,31]
[400659237,1767772247349,-194.927323,0.000325,31]
[400659238,1767772247358,-151.0,0.000325,31]
[400659239,1767772247367,-183.522133,0.000325,31]
[400659240,1767772247470,-200.632316,0.000325,31]
[400659241,1767772247479,-200.632316,0.000325,31]
[400659242,1767772247489,-200.632316,0.000325,31]
[400659243,1767772247498,-200.632316,0.000325,31]
[400659244,1767772247508,-2414.2803724,0.00032501,2]
[400659245,1767772247517,-392.0433415,0.00032548,30]
[400659246,1767772247527,-304.1183111,0.00032548,30]
[400659247,1767772247537,-184.409231,0.00032548,30]
[400659248,1767772247546,-304.1183111,0.00032548,30]
[400659249,1767772247555,-304.1183111,0.00032548,30]
[400659250,1767772247565,-304.1183111,0.00032548,30]
[400659251,1767772247574,-304.1183111,0.00032548,30]
[400659252,1767772247585,-633.1784071,0.00032548,30]
[400659253,1767772247594,-1908.17,0.000326,7]
[400659254,1767772247603,-402.32,0.00032602,33]
[400659255,1767772247613,-346.1,0.00032621,5]
[400659256,1767772247624,-191.37491647,0.00032701,23]
[400659257,1767772247634,-7241.114858,0.00032707,2]
[400659258,1767772247644,-800.0,0.00032778,2]
[400659259,1767772247653,-2414.2803724,0.00032815,2]
[400659260,1767772247663,-4254.70314019,0.00032821,34]
[400659261,1767772247674,-2410.47,0.00032876,120]
[400659262,1767772247683,-34408.73,0.00032877,10]
[400659263,1767772247692,-28673.94,0.00032877,10]
[400659264,1767772247702,-1041.66666667,0.00032877,10]
[400659265,1767772247711,-191.73798973,0.000329,120]
[400659266,1767772247721,-25963.54,0.000329,14]
[400659267,1767772247730,-1626.684503,0.00032913,31]
[400659268,1767772247739,-1626.684503,0.00032913,31]
[400659269,1767772247748,-1626.684503,0.00032913,31]
[400659270,1767772247757,-1626.684503,0.00032913,31]
[400659271,1767772247766,-151.0,0.00032913,31]
[400659272,1767772247775,-151.0,0.00032913,31]
[400659273,1767772247784,-151.0,0.00032913,31]
[400659274,1767772247793,-151.0,0.00032913,31]
[400659275,1767772247803,-289.726143,0.00032913,31]
[400659276,1767772247812,-151.0,0.00032913,31]
[400659277,1767772247820,-151.0,0.00032913,31]
[400659278,1767772247829,-151.0,0.00032913,31]
[400659279,1767772247839,-5000.0,0.00032913,2]
[400659280,1767772247848,-3065.40114138,0.00032919,5]
[400659281,1767772247857,-304.02245372,0.00032948,2]
[400659282,1767772247866,-734.9110917,0.00032991,120]
[400659283,1767772247876,-243.07,0.00033,7]
[400659284,1767772247885,-166.0,0.00033,14]
[400659285,1767772247894,-1019.0,0.00033,7]
[400659286,1767772247903,-316.0,0.00033,14]
[400659287,1767772247912,-2414.28037248,0.00033011,2]
[400659288,1767772247921,-188.9724463,0.00033053,2]
[400659289,1767772247930,-23377.3498342,0.00033053,2]
[400659290,1767772247939,-2832.2028351,0.00033053,2]
[400659291,1767772247948,-27623.7777106,0.00033053,2]
[400659292,1767772247958,-25217.9615435,0.00033053,2]
[400659293,1767772247967,-879.43912167,0.0003306,3]
[400659294,1767772247976,-800.0,0.00033092,2]
[400659295,1767772247986,-800.0,0.00033096,2]
[400659296,1767772247995,-2000.0,0.00033097,7]
[400659297,1767772248005,-258.12,0.000331,7]
[400659298,1767772248014,-2811.62,0.000331,30]
[400659299,1767772248023,-588.31683182,0.00033144,2]
[400659300,1767772248032,-402.32,0.0003315,34]
[400659301,1767772248041,-316.0,0.00033151,30]
[400659302,1767772248050,-194.927323,0.00033175,31]
[400659303,1767772248059,-194.927323,0.00033175,31]
[400659304,1767772248068,-194.927323,0.00033175,31]
[400659305,1767772248078,-194.927323,0.00033175,31]
[400659306,1767772248088,-200.632316,0.00033175,31]
[400659307,1767772248098,-200.632316,0.00033175,31]
[400659308,1767772248107,-200.632316,0.00033175,31]
[400659309,1767772248116,-200.632316,0.00033175,31]
[400659310,1767772248125,-209.524359,0.00033175,31]
[400659311,1767772248134,-209.524359,0.00033175,31]
[400659312,1767772248144,-209.524359,0.00033175,31]
[400659313,1767772248153,-209.524359,0.00033175,31]
[400659314,1767772248162,-241.004676,0.00033175,31]
[400659315,1767772248171,-241.004676,0.00033175,31]
[400659316,1767772248181,-1016.281206,0.00033175,31]
[400659317,1767772248190,-241.004676,0.00033175,31]
[400659318,1767772248199,-1016.281206,0.00033175,31]
[400659319,1767772248208,-241.004676,0.00033175,31]
[400659320,1767772248217,-1016.281206,0.00033175,31]
[400659321,1767772248226,-1016.281206,0.00033175,31]
[400659322,1767772248235,-154.171022,0.00033175,31]
[400659323,1767772248244,-530.111159,0.00033175,31]
[400659324,1767772248257,-530.111159,0.00033175,31]
[400659325,1767772248267,-530.111159,0.00033175,31]
[400659326,1767772248276,-225.672265,0.00033175,31]
[400659327,1767772248285,-225.672265,0.00033175,31]
[400659328,1767772248296,-530.111159,0.00033175,31]
[400659329,1767772248305,-225.672265,0.00033175,31]
[400659330,1767772248314,-225.672265,0.00033175,31]
[400659331,1767772248325,-151.0,0.00033175,31]
[400659332,1767772248334,-218.702509,0.00033175,31]
[400659333,1767772248343,-218.702509,0.00033175,31]
[400659334,1767772248352,-218.702509,0.00033175,31]
[400659335,1767772248362,-218.702509,0.00033175,31]
[400659336,1767772248371,-179.448151,0.00033175,31]
[400659337,1767772248380,-151.0,0.00033175,31]
[400659338,1767772248391,-184.812283,0.00033175,31]
[400659339,1767772248399,-184.812283,0.00033175,31]
[400659340,1767772248408,-184.812283,0.00033175,31]
[400659341,1767772248418,-151.0,0.00033175,31]
[400659342,1767772248427,-184.812283,0.00033175,31]
[400659343,1767772248438,-151.0,0.00033175,31]
[400659344,1767772248448,-247.352857,0.00033175,31]
[400659345,1767772248458,-151.0,0.00033175,31]
[400659346,1767772248467,-634.815792,0.00033175,28]
[400659347,1767772248476,-247.352857,0.00033175,31]
[400659348,1767772248485,-634.815792,0.00033175,28]
[400659349,1767772248495,-247.352857,0.00033175,31]
[400659350,1767772248513,-634.815792,0.00033175,28]
[400659351,1767772248522,-247.352857,0.00033175,31]
[400659352,1767772248531,-634.815792,0.00033175,28]
[400659353,1767772248542,-151.0,0.00033175,31]
[400659354,1767772248551,-298.315005,0.00033175,31]
[400659355,1767772248560,-151.0,0.00033175,31]
[400659356,1767772248570,-298.315005,0.00033175,31]
[400659357,1767772248579,-151.0,0.00033175,31]
[400659358,1767772248588,-298.315005,0.00033175,31]
[400659359,1767772248598,-151.0,0.00033175,31]
[400659360,1767772248607,-298.315005,0.00033175,31]
[400659361,1767772248616,-151.0,0.00033175,31]
[400659362,1767772248626,-151.0,0.00033175,31]
[400659363,1767772248636,-205.742012,0.00033175,31]
[400659364,1767772248645,-205.742012,0.00033175,31]
[400659365,1767772248655,-205.742012,0.00033175,31]
[400659366,1767772248666,-151.0,0.00033175,31]
[400659367,1767772248675,-205.742012,0.00033175,31]
[400659368,1767772248684,-151.0,0.00033175,31]
[400659369,1767772248694,-440.287203,0.00033175,31]
[400659370,1767772248703,-440.287203,0.00033175,31]
[400659371,1767772248712,-440.287203,0.00033175,31]
[400659372,1767772248721,-440.287203,0.00033175,31]
[400659373,1767772248731,-177.524366,0.00033175,7]
[400659374,1767772248740,-390.92977,0.00033175,31]
[400659375,1767772248749,-390.92977,0.00033175,31]
[400659376,1767772248758,-151.0,0.00033175,31]
[400659377,1767772248767,-390.92977,0.00033175,31]
[400659378,1767772248776,-390.92977,0.00033175,31]
[400659379,1767772248786,-151.0,0.00033175,31]
[400659380,1767772248795,-186.329815,0.00033175,31]
[400659381,1767772248805,-186.329815,0.00033175,31]
[400659382,1767772248814,-186.329815,0.00033175,31]
[400659383,1767772248823,-186.329815,0.00033175,31]
[400659384,1767772248832,-151.0,0.00033175,31]
[400659385,1767772248841,-237.990209,0.00033175,31]
[400659386,1767772248850,-151.0,0.00033175,31]
[400659387,1767772248859,-300.0,0.00033175,31]
[400659388,1767772248869,-300.0,0.00033175,31]
[400659389,1767772248878,-300.0,0.00033175,31]
[400659390,1767772248888,-300.0,0.00033175,31]
[400659391,1767772248897,-2389750.41816978,0.00033177,30]
[400659392,1767772249205,-1183.48423782,0.00033177,30]
[400659393,1767772249486,-1113.82238059,0.00032877,10]
[400659396,1767772351655,300.0,0.00014113,120]
[400659397,1767772353150,300.0,0.00014113,120]
[400659398,1767772354860,178.09,0.00014113,120]
[400659399,1767772355466,155.0,6e-05,2]
[400659401,1767772388927,151.0,0.000301,120]
[400659402,1767772390054,151.0,0.000301,120]
[400659403,1767772390999,151.0,0.000301,120]
[400659404,1767772396810,151.0,0.000301,120]
[400659405,1767772402339,151.0,0.000301,120]
[400659407,1767772416205,362.13147,0.00030137,120]
[400659410,1767772477538,176.91926481,0.00030137,120]
[400659411,1767772637682,499.3122578,0.00030136,120]
[400659413,1767772820762,194.53,0.00013448,120]
[400659414,1767772835059,200.0,0.000272,120]
[400659415,1767772835383,200.0,0.000287,120]
[400659422,1767772974573,10000.0,0.00030137,120]
[400659423,1767773003521,10000.0,0.00030137,120]
[400659424,1767773022551,10000.0,0.00030137,120]
[400659429,1767773192908,424.0,0.00030137,120]
[400659432,1767773252579,608.11491716,0.0001226,2]
[400659433,1767773267446,8891.02,0.0001226,2]
[400659435,1767773313587,4223.11862151,0.0001226,2]
[400659436,1767773314225,-1160.03892237,0.00012384,2]
[400659437,1767773314540,162.79,9.04e-05,2]
[400659438,1767773314988,189.92,9.387e-05,2]
[400659439,1767773315602,217.05,9.735e-05,2]
[400659440,1767773315900,244.18,0.00010083,2]
[400659441,1767773316339,271.31,0.0001043,2]
[400659442,1767773319351,-275.73,0.00012384,2]
[400659443,1767773320838,-357.02846024,0.00012384,2]
[400659444,1767773321771,935.75849954,0.0001226,2]
[400659445,1767773324203,-179.00505608,0.00012384,2]
[400659446,1767773326555,-227.92739227,0.00012384,2]
[400659447,1767773328451,-281.12842569,0.00012384,2]
[400659448,1767773330073,-172.02805785,0.00012384,2]
[400659449,1767773344324,1217.11739213,0.0001226,2]
[400659463,1767773400456,1000.0,0.0003,120]
[400659538,1767773438520,-300.0,0.00012328,2]
[400659540,1767773438529,-300.0,0.00012328,2]
[400659542,1767773438539,-245.0,0.00012328,2]
[400659544,1767773438548,-594.0,0.00012328,2]
[400659545,1767773438557,-465.28,0.00012329,2]
[400659547,1767773438566,-706.33,0.00012329,2]
[400659549,1767773438575,-458.37635367,0.00012329,2]
[400659553,1767773438599,-130.23364633,0.00012329,2]
[400659555,1767773438609,-490.51,0.00012329,2]
[400659557,1767773438618,-408.75,0.00012329,2]
[400659559,1767773438627,-340.63,0.00012329,2]
[400659561,1767773438637,-283.86,0.00012329,2]
[400659563,1767773438646,-236.55,0.00012329,2]
[400659565,1767773438655,-197.12,0.00012329,2]
[400659567,1767773438664,-164.27,0.00012329,2]
[400659569,1767773438674,-2347.1136855,0.00012384,2]
[400659571,1767773438683,-235.86206983,0.0001251,2]
[400659573,1767773438693,-446.08218099,0.00012787,2]
[400659575,1767773438703,-500.0,0.00012787,2]
[400659577,1767773438713,-500.0,0.00012787,2]
[400659579,1767773438722,-500.0,0.00012787,2]
[400659581,1767773438731,-500.0,0.00012787,2]
[400659583,1767773438741,-500.0,0.00012787,2]
[400659585,1767773438756,-309.73034031,0.00012787,2]
[400659587,1767773438766,-500.0,0.00012787,2]
[400659589,1767773438776,-500.0,0.00012787,2]
[400659591,1767773438787,-500.0,0.00012787,2]
[400659593,1767773438797,-500.0,0.00012787,2]
[400659595,1767773438807,-500.0,0.00012787,2]
[400659597,1767773438816,-500.0,0.00012787,2]
[400659600,1767773438828,-500.0,0.00012787,2]
[400659602,1767773438837,-500.0,0.00012787,2]
[400659604,1767773438847,-394.96048862,0.00012787,2]
[400659605,1767773438857,-500.0,0.00012787,2]
[400659607,1767773438867,-500.0,0.00012787,2]
[400659609,1767773438877,-500.0,0.00012787,2]
[400659612,1767773438887,-500.0,0.00012787,2]
[400659614,1767773438897,-465.92805928,0.00012787,2]
[400659616,1767773438907,-1000000.0,0.00012788,2]
[400659618,1767773438917,-50000.0,0.00012887,2]
[400659620,1767773438927,-300.0,0.00013147,2]
[400659621,1767773438936,-300.0,0.00013147,2]
[400659623,1767773438946,-300.0,0.00013147,2]
[400659625,1767773438956,-300.0,0.00013147,2]
[400659628,1767773438965,-300.0,0.00013147,2]
[400659629,1767773438974,-300.0,0.00013147,2]
[400659631,1767773438984,-300.0,0.00013147,2]
[400659634,1767773438995,-300.0,0.00013147,2]
[400659636,1767773439004,-300.0,0.00013147,2]
[400659637,1767773439014,-300.0,0.00013147,2]
[400659639,1767773439023,-300.0,0.00013147,2]
[400659642,1767773439033,-300.0,0.00013147,2]
[400659644,1767773439042,-300.0,0.00013147,2]
[400659646,1767773439052,-300.0,0.00013147,2]
[400659648,1767773439062,-300.0,0.00013147,2]
[400659649,1767773439071,-600.0,0.00013147,2]
[400659652,1767773439081,-500.0,0.00013273,2]
[400659654,1767773439091,-500.0,0.00013273,2]
[400659656,1767773439101,-500.0,0.00013273,2]
[400659658,1767773439111,-500.0,0.00013273,2]
[400659660,1767773439120,-500.0,0.00013273,2]
[400659662,1767773439130,-384.514,0.00013326,2]
[400659664,1767773439139,-184.475,0.00013326,2]
[400659666,1767773439148,-420.0,0.00013529,2]
[400659668,1767773439158,-3961.16471532,0.00013573,2]
[400659670,1767773439168,-300.0,0.00013673,2]
[400659672,1767773439177,-500.0,0.00013698,2]
[400659673,1767773439186,-500.0,0.00013698,2]
[400659676,1767773439196,-500.0,0.00013698,2]
[400659678,1767773439205,-500.0,0.00013698,2]
[400659680,1767773439215,-500.0,0.00013698,2]
[400659681,1767773439224,-500.0,0.00013698,2]
[400659684,1767773439233,-500.0,0.00013698,2]
[400659686,1767773439242,-500.0,0.00013698,2]
[400659687,1767773439252,-500.0,0.00013698,2]
[400659689,1767773439261,-500.0,0.00013698,2]
[400659691,1767773439271,-500.0,0.00013698,2]
[400659693,1767773439280,-500.0,0.00013698,2]
[400659695,1767773439289,-500.0,0.00013698,2]
[400659697,1767773439298,-500.0,0.00013698,2]
[400659699,1767773439307,-500.0,0.00013698,2]
[400659701,1767773439317,-500.0,0.00013698,2]
[400659703,1767773439326,-500.0,0.00013698,2]
[400659705,1767773439335,-500.0,0.00013698,2]
[400659707,1767773439344,-362.49716895,0.00013698,2]
[400659709,1767773439353,-500.0,0.00013698,2]
[400659711,1767773439363,-500.0,0.00013698,2]
[400659713,1767773439372,-500.0,0.00013698,2]
[400659715,1767773439381,-500.0,0.00013698,2]
[400659717,1767773439390,-560.87931796,0.00013698,2]
[400659719,1767773439399,-500.0,0.00013698,2]
[400659721,1767773439408,-500.0,0.00013698,2]
[400659723,1767773439418,-500.0,0.00013698,2]
[400659725,1767773439427,-500.0,0.00013698,2]
[400659727,1767773439435,-500.0,0.00013698,2]
[400659729,1767773439445,-500.0,0.00013698,2]
[400659731,1767773439454,-500.0,0.00013698,2]
[400659733,1767773439463,-583.07625313,0.00013698,2]
[400659735,1767773439471,-500.0,0.00013698,2]
[400659737,1767773439480,-500.0,0.00013698,2]
[400659739,1767773439489,-500.0,0.00013698,2]
[400659741,1767773439497,-500.0,0.00013699,2]
[400659743,1767773439506,-152.05252624,0.00013699,2]
[400659745,1767773439515,-500.0,0.00013699,2]
[400659747,1767773439524,-500.0,0.00013699,2]
[400659749,1767773439534,-500.0,0.00013699,2]
[400659751,1767773439543,-500.0,0.00013699,2]
[400659753,1767773439552,-500.0,0.00013699,2]
[400659755,1767773439563,-500.0,0.00013699,2]
[400659766,1767773439660,-1000.0,0.00013821,2]
[400659768,1767773439671,-1000.0,0.00013821,2]
[400659770,1767773439682,-1000.0,0.00013821,2]
[400659772,1767773439692,-1000.0,0.00013821,2]
[400659774,1767773439702,-1000.0,0.00013821,2]
[400659776,1767773439714,-8929.0,0.0001386,2]
[400659778,1767773439723,-281.65422352,0.00014175,2]
[400659780,1767773439733,-469.58590604,0.00014175,2]
[400659782,1767773439745,-600.0,0.00014221,2]
[400659784,1767773439760,-502.70184396,0.00014247,2]
[400659786,1767773439770,-1000.0,0.00014247,2]
[400659788,1767773439780,-1000.0,0.00014247,2]
[400659790,1767773439789,-1000.0,0.00014247,2]
[400659792,1767773439799,-1000.0,0.00014247,2]
[400659794,1767773439808,-506.91111939,0.00014247,2]
[400659796,1767773439818,-1000.0,0.00014247,2]
[400659798,1767773439827,-1500.0,0.00014368,2]
[400659800,1767773439836,-500.0,0.00014368,2]
[400659801,1767773439846,-1500.0,0.00014368,2]
[400659802,1767773439856,-1500.0,0.00014368,2]
[400659804,1767773439865,-1500.0,0.00014368,2]
[400659806,1767773439875,-461.45,0.0001441,2]
[400659808,1767773439884,-720.0,0.00014461,2]
[400659810,1767773439894,-278.3172424,0.0001451,2]
[400659812,1767773439904,-305961.524214,0.00014768,2]
[400659814,1767773439913,-900.0,0.00014768,2]
[400659816,1767773439923,-1002.73058689,0.00014795,2]
[400659818,1767773439934,-1500.0,0.00014795,2]
[400659820,1767773439944,-636.08782837,0.00014795,2]
[400659822,1767773439954,-1500.0,0.00014795,2]
[400659824,1767773439963,-1500.0,0.00014795,2]
[400659826,1767773439973,-587.0,0.00014847,2]